[Event "12th Arad Open 2019"]
[Site "Arad"]
[Date "2019.07.29"]
[Round "7.28"]
[White "Michalicka, Milan"]
[Black "Malos, Vasilica"]
[Result "1-0"]
[ECO "D43"]
[WhiteElo "2190"]
[BlackElo "1782"]
[Annotator "NA"]
[PlyCount "157"]
[EventDate "2019.07.24"]
[EventType "swiss"]
[EventCountry "ROU"]
[SourceTitle "playchess.com"]
[Source "ChessBase"]
[SourceQuality "1"]
[TimeControl "40/5400+30:900+30"]

1. d4 {[%emt 0:00:00]} d5 {[%emt 0:00:23]} 2. c4 {[%emt 0:00:00]} c6 {[%emt 0:00:11]} 3. Nf3 {[%emt 0:00:00]} Nf6 {[%emt 0:00:43]} 4. Nc3 {[%emt 0:00:05]} e6 {[%emt 0:00:28]} 5. g3 {[%emt 0:00:15]} g6 {[%emt 0:00:42]} 6. Bg2 {[%emt 0:01:09]} Bg7 {[%emt 0:00:18]} 7. O-O {[%emt 0:02:01]} O-O {[%emt 0:00:23]} 8. Bg5 {[%emt 0:03:32]} Nbd7 {[%emt 0:01:53]} 9. Qd2 {[%emt 0:02:46]} Re8 {[%emt 0:01:24]} 10. Rfd1 {[%emt 0:07:01]} b6 {[%emt 0:00:49]} 11. Rac1 {[%emt 0:01:19]} Bb7 {[%emt 0:00:19]} 12. Ne5 {[%emt 0:01:51]} Rc8 {[%emt 0:01:11]} 13. e4 dxe4 {[%emt 0:02:15]} 14. Qf4 {[%emt 0:09:10]} Qc7 {[%emt 0:01:16]} 15. Nxe4 {[%emt 0:01:02]} Nxe5 {[%emt 0:02:30]} 16. Bxf6 {[%emt 0:02:42]} Nd7 {[%emt 0:00:50]} 17. Bxg7 {[%emt 0:00:35]} Qxf4 {[%emt 0:00:30]} 18. gxf4 {[%emt 0:00:08]} Kxg7 {[%emt 0:01:21]} 19. Nd6 {[%emt 0:00:05]} Ba8 {[%emt 0:00:38]} 20. c5 {[%emt 0:02:06]} Red8 {[%emt 0:01:56]} 21. Nxc8 {[%emt 0:00:29]} Rxc8 {[%emt 0:00:18]} 22. Rc3 {[%emt 0:02:53]} b5 {[%emt 0:04:14]} 23. b4 {[%emt 0:00:42]} Bb7 {[%emt 0:00:54]} 24. a4 {[%emt 0:00:47]} a6 {[%emt 0:01:38]} 25. Ra3 {[%emt 0:00:46]} bxa4 {[%emt 0:06:33]} 26. Rxa4 {[%emt 0:00:25]} Rb8 {[%emt 0:01:18]} 27. Bf1 {[%emt 0:00:45]} Ra8 {[%emt 0:00:15]} 28. Rda1 {[%emt 0:00:19]} Nb8 {[%emt 0:00:52]} 29. Kg2 {[%emt 0:02:34]} Kf6 {[%emt 0:00:17]} 30. Kf3 {[%emt 0:00:28]} h6 {[%emt 0:00:48]} 31. Bd3 {[%emt 0:01:21]} Ke7 {[%emt 0:01:05]} 32. Ke3 {[%emt 0:02:13]} Kd8 {[%emt 0:04:19]} 33. Ke4 {[%emt 0:01:10]} Kc7 {[%emt 0:01:14]} 34. Bc4 {[%emt 0:01:54]} Ra7 {[%emt 0:00:24]} 35. R4a3 {[%emt 0:00:45]} Kd8 {[%emt 0:01:27]} 36. Rh3 {[%emt 0:00:24]} h5 {[%emt 0:00:36]} 37. Ke3 {[%emt 0:00:27]} Ke7 {[%emt 0:01:31]} 38. Ke2 {[%emt 0:00:44]} Kf6 {[%emt 0:01:34]} 39. Rha3 {[%emt 0:00:20]} Bc8 {[%emt 0:00:59]} 40. Bd3 {[%emt 0:00:00]} Re7 {[%emt 0:00:00]} 41. Kd2 {[%emt 0:02:25]} Rd7 {[%emt 0:05:17]} 42. Kc3 {[%emt 0:00:14]} Rc7 {[%emt 0:02:41]} 43. Re1 {[%emt 0:00:35]} Rd7 {[%emt 0:01:07]} 44. Ra2 {[%emt 0:00:20]} Rd8 {[%emt 0:00:49]} 45. Rae2 {[%emt 0:00:37]} Rh8 {[%emt 0:07:18]} 46. h4 {[%emt 0:01:08]} Rd8 {[%emt 0:00:25]} 47. f5 {[%emt 0:02:18]} gxf5 {[%emt 0:03:21]} 48. Rg1 {[%emt 0:00:20]} Nd7 {[%emt 0:00:36]} 49. f4 {[%emt 0:00:49]} Nf8 {[%emt 0:01:48]} 50. Rg8 {[%emt 0:00:20]} Bb7 {[%emt 0:04:03]} 51. Ra2 {[%emt 0:06:58]} Ke7 {[%emt 0:00:49]} 52. Bxa6 {[%emt 0:00:41]} Ra8 {[%emt 0:00:34]} 53. Bc4 {[%emt 0:00:11]} Rxa2 {[%emt 0:01:59]} 54. Bxa2 {[%emt 0:00:05]} Bc8 {[%emt 0:00:52]} 55. Bc4 {[%emt 0:11:09]} Bd7 {[%emt 0:00:15]} 56. Ba6 {[%emt 0:02:41]} Ng6 {[%emt 0:00:33]} 57. b5 {[%emt 0:06:31]} cxb5 {[%emt 0:00:45]} 58. Rxg6 {[%emt 0:00:57]} fxg6 {[%emt 0:00:23]} 59. Kb4 {[%emt 0:00:21]} g5 {[%emt 0:06:52]} 60. fxg5 {[%emt 0:00:41]} f4 {[%emt 0:00:50]} 61. Bb7 {[%emt 0:01:02]} Be8 {[%emt 0:02:42]} 62. Bf3 {[%emt 0:00:42]} e5 {[%emt 0:03:06]} 63. dxe5 {[%emt 0:00:48]} Ke6 {[%emt 0:01:02]} 64. c6 {[%emt 0:00:19]} Kxe5 {[%emt 0:00:36]} 65. Kxb5 {[%emt 0:00:37]} Kd4 {[%emt 0:00:53]} 66. Kb6 {[%emt 0:00:18]} Ke3 {[%emt 0:00:35]} 67. c7 {[%emt 0:00:09]} Kxf3 {[%emt 0:01:41]} 68. c8=Q {[%emt 0:00:12]} Bg6 {[%emt 0:01:05]} 69. Qc3+ {[%emt 0:01:29]} Kg4 {[%emt 0:01:14]} 70. Qf6 {[%emt 0:00:22]} Bd3 {[%emt 0:02:37]} 71. g6 {[%emt 0:00:11]} Bxg6 {[%emt 0:00:52]} 72. Qxg6+ {[%emt 0:00:14]} Kxh4 {[%emt 0:00:20]} 73. Qf5 {[%emt 0:00:12]} Kg3 {[%emt 0:02:24]} 74. Qg5+ {[%emt 0:00:12]} Kf3 {[%emt 0:01:32]} 75. Qxh5+ {[%emt 0:00:11]} Ke3 {[%emt 0:01:52]} 76. Qd1 {[%emt 0:00:15]} Kf2 {[%emt 0:00:49]} 77. Qd2+ {[%emt 0:00:49]} Kg3 {[%emt 0:00:03]} 78. Qe1+ {[%emt 0:00:18]} Kg2 {[%emt 0:01:18]} 79. Qe2+ 1-0

[Event "12th Arad Open 2019"]
[Site "Arad"]
[Date "2019.07.29"]
[Round "7.29"]
[White "Nedelcu, Teodor-Cosmin"]
[Black "Weinzettl, Ernst"]
[Result "1-0"]
[ECO "E48"]
[WhiteElo "1963"]
[BlackElo "2165"]
[Annotator "NA"]
[PlyCount "91"]
[EventDate "2019.07.24"]
[EventType "swiss"]
[EventCountry "ROU"]
[SourceTitle "playchess.com"]
[Source "ChessBase"]
[SourceQuality "1"]
[TimeControl "40/5400+30:900+30"]

1. d4 {[%emt 0:00:00]} Nf6 {[%emt 0:00:00]} 2. c4 {[%emt 0:00:00]} e6 {[%emt 0:00:20]} 3. Nc3 {[%emt 0:00:00]} Bb4 {[%emt 0:00:13]} 4. e3 {[%emt 0:00:00]} O-O {[%emt 0:00:22]} 5. Bd3 {[%emt 0:00:01]} d5 {[%emt 0:00:50]} 6. cxd5 {[%emt 0:00:16]} exd5 {[%emt 0:00:10]} 7. Nge2 {[%emt 0:00:06]} c5 {[%emt 0:02:10]} 8. dxc5 {[%emt 0:00:34]} Bxc5 {[%emt 0:01:10]} 9. O-O {[%emt 0:01:08]} Nc6 {[%emt 0:01:00]} 10. Nf4 {[%emt 0:00:30]} d4 {[%emt 0:06:00]} 11. Na4 {[%emt 0:00:30]} Be7 {[%emt 0:01:19]} 12. b3 {[%emt 0:02:06]} dxe3 {[%emt 0:06:12]} 13. Bxe3 {[%emt 0:01:02]} Nb4 {[%emt 0:08:36]} 14. Bc4 {[%emt 0:02:41]} Qxd1 {[%emt 0:23:55]} 15. Raxd1 {[%emt 0:00:14]} b6 {[%emt 0:14:06]} 16. Rfe1 {[%emt 0:02:25]} Nc2 {[%emt 0:01:04]} 17. Re2 {[%emt 0:02:04]} Nxe3 {[%emt 0:00:28]} 18. Rxe3 {[%emt 0:00:30]} Bb4 {[%emt 0:04:22]} 19. Rd4 {[%emt 0:03:26]} Ba3 {[%emt 0:01:22]} 20. Nd5 {[%emt 0:01:08]} Ng4 {[%emt 0:20:28]} 21. Rg3 {[%emt 0:01:30]} Ne5 {[%emt 0:00:41]} 22. b4 {[%emt 0:01:47]} Nxc4 {[%emt 0:01:03]} 23. Rxc4 {[%emt 0:01:03]} Be6 {[%emt 0:00:36]} 24. Nf6+ {[%emt 0:03:47]} Kh8 {[%emt 0:00:03]} 25. Rh4 {[%emt 0:01:00]} gxf6 {[%emt 0:00:08]} 26. Rxa3 {[%emt 0:00:02]} Rac8 {[%emt 0:00:11]} 27. h3 {[%emt 0:03:16]} Rc1+ {[%emt 0:01:31]} 28. Kh2 {[%emt 0:00:31]} Rc2 {[%emt 0:00:32]} 29. Nc3 {[%emt 0:00:58]} f5 {[%emt 0:01:40]} 30. Rf4 {[%emt 0:00:44]} Rc8 {[%emt 0:01:25]} 31. Nb5 {[%emt 0:01:03]} R8c4 {[%emt 0:01:18]} 32. Rxc4 {[%emt 0:02:07]} Bxc4 {[%emt 0:00:33]} 33. Nd6 {[%emt 0:05:03]} Be6 {[%emt 0:02:06]} 34. Rxa7 {[%emt 0:00:54]} Kg7 {[%emt 0:00:29]} 35. Kg3 {[%emt 0:04:15]} f4+ {[%emt 0:00:34]} 36. Kxf4 {[%emt 0:00:46]} Rxf2+ {[%emt 0:00:08]} 37. Kg3 {[%emt 0:00:03]} Rb2 {[%emt 0:00:23]} 38. a3 {[%emt 0:00:51]} Kf6 {[%emt 0:00:15]} 39. Ne4+ {[%emt 0:00:39]} Kf5 {[%emt 0:00:19]} 40. Nd6+ {[%emt 0:00:00]} Kg6 {[%emt 0:00:00]} 41. Ra6 {[%emt 0:01:04]} Rb3+ {[%emt 0:04:41]} 42. Kf4 {[%emt 0:00:43]} h6 {[%emt 0:02:25]} 43. Nb5 {[%emt 0:00:45]} Bc4 {[%emt 0:07:00]} 44. Rxb6+ {[%emt 0:00:36]} Kg7 {[%emt 0:00:03]} 45. Nd6 {[%emt 0:00:13]} Bf1 {[%emt 0:00:18]} 46. Nf5+ {[%emt 0:00:08]} 1-0

[Event "12th Arad Open 2019"]
[Site "Arad"]
[Date "2019.07.29"]
[Round "7.30"]
[White "Czebe, Attila"]
[Black "Fluerariu, Radu-Cristian"]
[Result "0-1"]
[ECO "A01"]
[WhiteElo "2436"]
[BlackElo "2021"]
[Annotator "NA"]
[PlyCount "98"]
[EventDate "2019.07.24"]
[EventType "swiss"]
[EventCountry "ROU"]
[SourceTitle "playchess.com"]
[Source "ChessBase"]
[SourceQuality "1"]
[TimeControl "40/5400+30:900+30"]

1. b3 {[%emt 0:07:23]} e5 {[%emt 0:04:14]} 2. Bb2 {[%emt 0:00:05]} Nc6 {[%emt 0:01:52]} 3. e3 {[%emt 0:00:07]} Nf6 {[%emt 0:00:48]} 4. Bb5 {[%emt 0:00:06]} Bd6 {[%emt 0:03:52]} 5. Na3 {[%emt 0:00:02]} Na5 {[%emt 0:01:11]} 6. Be2 {[%emt 0:00:03]} c6 {[%emt 0:06:53]} 7. c4 {[%emt 0:00:30]} b6 {[%emt 0:06:45]} 8. Nc2 {[%emt 0:00:44]} Qe7 {[%emt 0:06:45]} 9. b4 {[%emt 0:06:40]} Nb7 {[%emt 0:10:23]} 10. a3 {[%emt 0:00:29]} O-O {[%emt 0:02:25]} 11. d3 {[%emt 0:01:02]} a5 {[%emt 0:04:41]} 12. Nf3 {[%emt 0:00:43]} Re8 {[%emt 0:09:11]} 13. O-O {[%emt 0:00:42]} Bc7 {[%emt 0:02:27]} 14. e4 {[%emt 0:02:40]} d5 {[%emt 0:05:07]} 15. cxd5 {[%emt 0:00:19]} cxd5 {[%emt 0:00:06]} 16. Ne3 {[%emt 0:00:03]} dxe4 {[%emt 0:07:40]} 17. dxe4 {[%emt 0:00:05]} axb4 {[%emt 0:00:47]} 18. axb4 {[%emt 0:00:18]} Rxa1 {[%emt 0:00:35]} 19. Qxa1 {[%emt 0:00:08]} Qxb4 {[%emt 0:01:33]} 20. Nxe5 {[%emt 0:01:03]} Nc5 {[%emt 0:06:03]} 21. Bc4 {[%emt 0:02:57]} Be6 {[%emt 0:05:09]} 22. Bxe6 {[%emt 0:00:30]} Nxe6 {[%emt 0:01:35]} 23. Re1 {[%emt 0:06:46]} Nxe4 {[%emt 0:06:16]} 24. Nf3 {[%emt 0:03:42]} Nd2 {[%emt 0:03:07]} 25. Nxd2 {[%emt 0:03:40]} Qxd2 {[%emt 0:00:01]} 26. Bc3 {[%emt 0:00:01]} Qd3 {[%emt 0:02:33]} 27. Nf1 {[%emt 0:03:35]} b5 {[%emt 0:00:35]} 28. Re3 {[%emt 0:00:10]} Qc2 29. Qa6 {[%emt 0:02:19]} Qa4 {[%emt 0:01:20]} 30. Qc6 {[%emt 0:00:11]} Re7 {[%emt 0:00:34]} 31. Bb2 {[%emt 0:02:53]} h6 {[%emt 0:00:29]} 32. Ba3 Nd8 {[%emt 0:00:30]} 33. Qc5 {[%emt 0:00:36]} Rxe3 {[%emt 0:00:16]} 34. Nxe3 {[%emt 0:00:03]} Ne6 {[%emt 0:00:32]} 35. Qe7 {[%emt 0:00:02]} Qf4 {[%emt 0:00:38]} 36. g3 {[%emt 0:00:30]} Qf6 {[%emt 0:00:34]} 37. Qe8+ {[%emt 0:01:50]} Kh7 {[%emt 0:00:01]} 38. Qxb5 {[%emt 0:00:08]} Qa1+ {[%emt 0:00:33]} 39. Kg2 {[%emt 0:00:17]} Qxa3 {[%emt 0:00:24]} 40. Qc6 {[%emt 0:00:00]} Qa5 {[%emt 0:00:00]} 41. Nd5 {[%emt 0:01:32]} Bd8 {[%emt 0:04:21]} 42. h4 {[%emt 0:00:25]} Qc5 {[%emt 0:00:52]} 43. Qd7 {[%emt 0:00:05]} Qd4 {[%emt 0:01:38]} 44. Qb7 {[%emt 0:00:28]} Qe4+ {[%emt 0:01:27]} 45. Kg1 {[%emt 0:00:02]} Qf5 {[%emt 0:00:31]} 46. Ne3 {[%emt 0:00:10]} Qg6 {[%emt 0:00:58]} 47. Ng2 {[%emt 0:00:01]} Bf6 48. Qd5 Qb1+ {[%emt 0:01:21]} 49. Kh2 {[%emt 0:00:01]} Qc2 {[%emt 0:00:14]} 0-1

[Event "12th Arad Open 2019"]
[Site "Arad"]
[Date "2019.07.29"]
[Round "7.33"]
[White "Dobre, Radu-Fabian"]
[Black "Pop, Alexandru"]
[Result "0-1"]
[ECO "C02"]
[WhiteElo "2004"]
[BlackElo "2276"]
[Annotator "NA"]
[PlyCount "82"]
[EventDate "2019.07.24"]
[EventType "swiss"]
[EventCountry "ROU"]
[SourceTitle "playchess.com"]
[Source "ChessBase"]
[SourceQuality "1"]
[TimeControl "40/5400+30:900+30"]

1. e4 {[%emt 0:00:00]} c5 {[%emt 0:01:38]} 2. Nf3 {[%emt 0:00:12]} Nc6 {[%emt 0:00:06]} 3. c3 {[%emt 0:00:20]} e6 {[%emt 0:04:18]} 4. d4 {[%emt 0:00:08]} d5 {[%emt 0:00:05]} 5. e5 {[%emt 0:00:04]} Qb6 {[%emt 0:00:06]} 6. a3 {[%emt 0:00:07]} Nge7 {[%emt 0:00:27]} 7. b4 {[%emt 0:00:08]} cxd4 {[%emt 0:00:13]} 8. cxd4 {[%emt 0:00:02]} Nf5 {[%emt 0:00:32]} 9. Be3 {[%emt 0:00:09]} Be7 {[%emt 0:01:14]} 10. Bd3 {[%emt 0:00:12]} O-O {[%emt 0:01:14]} 11. Nc3 {[%emt 0:00:32]} Qd8 {[%emt 0:01:04]} 12. O-O {[%emt 0:00:32]} f6 {[%emt 0:06:34]} 13. Bxf5 {[%emt 0:05:36]} exf5 {[%emt 0:00:06]} 14. Re1 {[%emt 0:00:12]} fxe5 {[%emt 0:12:33]} 15. dxe5 {[%emt 0:03:07]} f4 {[%emt 0:00:30]} 16. Bc1 {[%emt 0:07:52]} d4 {[%emt 0:04:16]} 17. Ne2 {[%emt 0:00:25]} d3 {[%emt 0:01:01]} 18. Nxf4 {[%emt 0:00:21]} Bg4 {[%emt 0:00:10]} 19. Qxd3 {[%emt 0:00:45]} Qxd3 {[%emt 0:00:37]} 20. Nxd3 {[%emt 0:00:02]} Bxf3 {[%emt 0:00:14]} 21. gxf3 {[%emt 0:00:09]} Nd4 {[%emt 0:00:07]} 22. Rd1 {[%emt 0:03:10]} Nxf3+ {[%emt 0:02:49]} 23. Kg2 {[%emt 0:04:32]} Rf5 {[%emt 0:00:11]} 24. Bf4 {[%emt 0:00:26]} Nh4+ {[%emt 0:02:54]} 25. Kf1 {[%emt 0:00:49]} Ng6 {[%emt 0:03:16]} 26. Bg3 {[%emt 0:00:13]} h5 {[%emt 0:00:15]} 27. h3 {[%emt 0:00:27]} Bh4 {[%emt 0:04:29]} 28. Bh2 {[%emt 0:03:12]} Raf8 {[%emt 0:01:15]} 29. Ra2 {[%emt 0:00:23]} Rf3 {[%emt 0:00:49]} 30. Kg2 {[%emt 0:00:22]} Bd8 {[%emt 0:06:59]} 31. Bg3 {[%emt 0:03:10]} Bb6 {[%emt 0:01:15]} 32. Re2 {[%emt 0:00:28]} h4 {[%emt 0:13:05]} 33. Bh2 {[%emt 0:00:02]} R3f5 {[%emt 0:00:07]} 34. f4 {[%emt 0:00:35]} Ne7 {[%emt 0:00:11]} 35. Nc5 {[%emt 0:03:44]} Bxc5 {[%emt 0:11:50]} 36. bxc5 {[%emt 0:00:02]} Nc6 {[%emt 0:01:06]} 37. Rd7 {[%emt 0:01:56]} g5 {[%emt 0:00:19]} 38. Rb2 {[%emt 0:00:46]} gxf4 {[%emt 0:01:40]} 39. Rbxb7 {[%emt 0:01:25]} Rg5+ {[%emt 0:00:25]} 40. Kf1 {[%emt 0:00:00]} Nxe5 {[%emt 0:00:00]} 41. Rd4 {[%emt 0:01:31]} Nf3 {[%emt 0:01:21]} 0-1

[Event "12th Arad Open 2019"]
[Site "Arad"]
[Date "2019.07.29"]
[Round "7.34"]
[White "Starcevic, Ante Leon"]
[Black "Sandor, Tamas"]
[Result "1-0"]
[ECO "A30"]
[WhiteElo "2217"]
[BlackElo "1964"]
[Annotator "NA"]
[PlyCount "71"]
[EventDate "2019.07.24"]
[EventType "swiss"]
[EventCountry "ROU"]
[SourceTitle "playchess.com"]
[Source "ChessBase"]
[SourceQuality "1"]
[TimeControl "40/5400+30:900+30"]

1. c4 {[%emt 0:00:00]} c5 {[%emt 0:00:00]} 2. Nf3 {[%emt 0:00:00]} Nc6 {[%emt 0:00:00]} 3. d4 {[%emt 0:00:00]} cxd4 {[%emt 0:00:00]} 4. Nxd4 {[%emt 0:00:04]} e5 {[%emt 0:00:05]} 5. Nb5 {[%emt 0:00:59]} a6 {[%emt 0:00:08]} 6. Nd6+ {[%emt 0:02:13]} Bxd6 {[%emt 0:00:07]} 7. Qxd6 {[%emt 0:00:07]} Qf6 {[%emt 0:00:02]} 8. Qd3 {[%emt 0:06:17]} Nge7 {[%emt 0:20:57]} 9. Nc3 {[%emt 0:00:36]} O-O {[%emt 0:00:22]} 10. e4 {[%emt 0:17:55]} b5 {[%emt 0:07:05]} 11. c5 {[%emt 0:08:58]} b4 {[%emt 0:17:08]} 12. Na4 {[%emt 0:16:24]} a5 {[%emt 0:07:11]} 13. Nb6 {[%emt 0:10:56]} Ba6 {[%emt 0:07:22]} 14. Qd6 {[%emt 0:00:34]} Qh4 {[%emt 0:05:47]} 15. Nxa8 {[%emt 0:09:06]} Bxf1 {[%emt 0:08:24]} 16. Kxf1 {[%emt 0:00:35]} Qxe4 {[%emt 0:01:00]} 17. Be3 {[%emt 0:03:42]} Rxa8 {[%emt 0:01:36]} 18. Qd2 {[%emt 0:02:43]} f5 {[%emt 0:06:29]} 19. f3 {[%emt 0:00:27]} Qc4+ {[%emt 0:02:58]} 20. Kg1 {[%emt 0:00:09]} f4 {[%emt 0:01:02]} 21. Bf2 {[%emt 0:00:05]} Nf5 {[%emt 0:02:10]} 22. Qxd7 {[%emt 0:03:12]} Ncd4 {[%emt 0:01:58]} 23. Bxd4 {[%emt 0:02:08]} Nxd4 {[%emt 0:00:17]} 24. h4 {[%emt 0:01:07]} Qxc5 {[%emt 0:03:19]} 25. Kh2 {[%emt 0:00:03]} Nxf3+ {[%emt 0:05:43]} 26. Kh3 {[%emt 0:00:05]} Nxh4 {[%emt 0:01:18]} 27. Kxh4 {[%emt 0:06:06]} Qf2+ {[%emt 0:00:13]} 28. Kh5 {[%emt 0:00:07]} Qxg2 {[%emt 0:00:47]} 29. Rag1 {[%emt 0:00:11]} Qf3+ {[%emt 0:00:23]} 30. Qg4 {[%emt 0:00:49]} Qb7 {[%emt 0:00:35]} 31. Qe6+ {[%emt 0:01:14]} Kh8 {[%emt 0:00:29]} 32. Kg4 {[%emt 0:01:52]} Rf8 {[%emt 0:00:32]} 33. Rh2 {[%emt 0:00:28]} h6 {[%emt 0:00:28]} 34. Rgh1 {[%emt 0:00:22]} Rf6 {[%emt 0:00:34]} 35. Qxf6 {[%emt 0:00:23]} gxf6 {[%emt 0:00:28]} 36. Rxh6+ {[%emt 0:00:06]} 1-0

[Event "12th Arad Open 2019"]
[Site "Arad"]
[Date "2019.07.29"]
[Round "7.35"]
[White "Ursan, Petru-Sebastian"]
[Black "Magold, Victor"]
[Result "1/2-1/2"]
[ECO "E18"]
[WhiteElo "2212"]
[BlackElo "1962"]
[Annotator "NA"]
[PlyCount "88"]
[EventDate "2019.07.24"]
[EventType "swiss"]
[EventCountry "ROU"]
[SourceTitle "playchess.com"]
[Source "ChessBase"]
[SourceQuality "1"]
[TimeControl "40/5400+30:900+30"]

1. d4 {[%emt 0:00:04]} Nf6 {[%emt 0:00:00]} 2. Nf3 {[%emt 0:00:16]} e6 {[%emt 0:00:04]} 3. g3 {[%emt 0:00:22]} b6 {[%emt 0:00:29]} 4. Bg2 {[%emt 0:01:13]} Bb7 {[%emt 0:00:09]} 5. O-O {[%emt 0:01:29]} Be7 {[%emt 0:00:12]} 6. c4 {[%emt 0:00:20]} O-O {[%emt 0:00:57]} 7. Nc3 {[%emt 0:00:47]} d5 {[%emt 0:07:42]} 8. Ne5 {[%emt 0:10:22]} Nbd7 {[%emt 0:08:09]} 9. cxd5 {[%emt 0:09:57]} Nxe5 {[%emt 0:01:10]} 10. d6 {[%emt 0:06:20]} Bxg2 {[%emt 0:05:03]} 11. dxe7 {[%emt 0:00:49]} Qxe7 {[%emt 0:00:03]} 12. dxe5 {[%emt 0:05:03]} Bxf1 {[%emt 0:00:06]} 13. exf6 {[%emt 0:00:14]} Qxf6 {[%emt 0:00:04]} 14. Qxf1 {[%emt 0:00:19]} Rfd8 {[%emt 0:00:59]} 15. Be3 {[%emt 0:02:08]} c5 {[%emt 0:04:50]} 16. Qg2 {[%emt 0:03:16]} Qe7 {[%emt 0:00:15]} 17. a4 {[%emt 0:01:45]} Rab8 {[%emt 0:05:18]} 18. Qe4 {[%emt 0:03:23]} Rb7 {[%emt 0:07:16]} 19. h4 {[%emt 0:06:06]} h6 {[%emt 0:02:37]} 20. Rd1 {[%emt 0:04:39]} Rbd7 {[%emt 0:04:51]} 21. Rxd7 {[%emt 0:00:09]} Qxd7 {[%emt 0:00:15]} 22. Bf4 {[%emt 0:03:35]} f6 {[%emt 0:12:23]} 23. Qg6 {[%emt 0:10:38]} Qf7 {[%emt 0:01:51]} 24. Qxf7+ {[%emt 0:08:16]} Kxf7 {[%emt 0:00:06]} 25. e4 {[%emt 0:00:38]} g5 {[%emt 0:03:26]} 26. hxg5 {[%emt 0:00:24]} hxg5 {[%emt 0:00:03]} 27. Be3 {[%emt 0:00:14]} Kg6 {[%emt 0:01:42]} 28. Kf1 {[%emt 0:00:25]} Kh5 {[%emt 0:12:47]} 29. Ke2 {[%emt 0:01:08]} Kg4 {[%emt 0:01:34]} 30. Nb5 {[%emt 0:07:51]} Rd7 {[%emt 0:00:29]} 31. a5 {[%emt 0:04:01]} bxa5 {[%emt 0:01:18]} 32. Na3 {[%emt 0:00:28]} Rb7 {[%emt 0:00:52]} 33. Nc4 {[%emt 0:00:09]} Rb5 {[%emt 0:01:00]} 34. Kd3 {[%emt 0:00:44]} a4 {[%emt 0:01:13]} 35. Kc2 {[%emt 0:02:00]} Kf3 {[%emt 0:02:47]} 36. e5 {[%emt 0:02:16]} f5 {[%emt 0:00:30]} 37. Nd6 {[%emt 0:00:33]} Rb6 {[%emt 0:00:43]} 38. Nf7 {[%emt 0:01:19]} g4 {[%emt 0:00:53]} 39. Ng5+ {[%emt 0:02:43]} Ke2 {[%emt 0:00:18]} 40. Kc3 {[%emt 0:00:00]} Rb3+ {[%emt 0:00:00]} 41. Kc2 {[%emt 0:01:56]} Rb6 {[%emt 0:01:59]} 42. Kc3 {[%emt 0:01:04]} Rb3+ {[%emt 0:00:04]} 43. Kc2 {[%emt 0:00:44]} Rb6 {[%emt 0:00:04]} 44. Kc3 {[%emt 0:08:31]} Rb3+ {[%emt 0:00:03]} 1/2-1/2

[Event "12th Arad Open 2019"]
[Site "Arad"]
[Date "2019.07.29"]
[Round "7.36"]
[White "Ghimpu, Samuel-Timotei"]
[Black "Popa-Matei, Viorel-Ovidiu"]
[Result "1-0"]
[ECO "C57"]
[WhiteElo "2193"]
[BlackElo "1895"]
[Annotator "NA"]
[PlyCount "70"]
[EventDate "2019.07.24"]
[EventType "swiss"]
[EventCountry "ROU"]
[SourceTitle "playchess.com"]
[Source "ChessBase"]
[SourceQuality "1"]
[TimeControl "40/5400+30:900+30"]

1. e4 {[%emt 0:00:00]} e5 {[%emt 0:03:34]} 2. Nf3 {[%emt 0:00:00]} Nc6 {[%emt 0:00:05]} 3. Bc4 {[%emt 0:00:04]} Nf6 {[%emt 0:00:05]} 4. Ng5 {[%emt 0:00:12]} d5 {[%emt 0:00:15]} 5. exd5 {[%emt 0:00:09]} b5 {[%emt 0:00:05]} 6. Bf1 {[%emt 0:11:53]} Nd4 {[%emt 0:18:57]} 7. c3 {[%emt 0:01:47]} Nf5 {[%emt 0:31:21]} 8. Bxb5+ {[%emt 0:00:11]} Bd7 {[%emt 0:00:11]} 9. Qa4 {[%emt 0:01:25]} Bd6 {[%emt 0:08:52]} 10. Bxd7+ {[%emt 0:00:58]} Nxd7 {[%emt 0:00:06]} 11. Ne6 {[%emt 0:00:26]} fxe6 12. dxe6 O-O {[%emt 0:01:23]} 13. exd7 {[%emt 0:01:43]} e4 {[%emt 0:10:23]} 14. Qxe4 {[%emt 0:00:31]} Qxd7 {[%emt 0:00:07]} 15. O-O {[%emt 0:00:20]} Rae8 {[%emt 0:00:35]} 16. Qg4 {[%emt 0:00:56]} Qb5 {[%emt 0:15:31]} 17. b3 {[%emt 0:03:37]} Qe5 {[%emt 0:01:02]} 18. g3 {[%emt 0:01:26]} h5 {[%emt 0:03:53]} 19. Qxh5 {[%emt 0:01:59]} Qe4 {[%emt 0:00:18]} 20. Ba3 {[%emt 0:02:52]} Re6 {[%emt 0:01:38]} 21. Bxd6 {[%emt 0:00:53]} Rxd6 {[%emt 0:00:47]} 22. f4 {[%emt 0:12:10]} Rd3 {[%emt 0:00:13]} 23. Qh3 {[%emt 0:02:51]} Rfd8 {[%emt 0:01:06]} 24. Qg2 {[%emt 0:00:31]} Qe8 {[%emt 0:00:34]} 25. a4 {[%emt 0:06:36]} Qg6 {[%emt 0:00:30]} 26. Rf3 {[%emt 0:00:22]} Qg4 {[%emt 0:00:34]} 27. Rxd3 {[%emt 0:00:32]} Rxd3 {[%emt 0:00:03]} 28. Na3 {[%emt 0:02:12]} Nxg3 {[%emt 0:00:39]} 29. Re1 {[%emt 0:00:23]} Rf3 {[%emt 0:00:45]} 30. Nc4 {[%emt 0:01:34]} Qxf4 {[%emt 0:00:31]} 31. Ne5 {[%emt 0:00:07]} Rf1+ {[%emt 0:00:42]} 32. Rxf1 {[%emt 0:00:01]} Nxf1 {[%emt 0:00:02]} 33. Qd5+ {[%emt 0:01:08]} Kh7 {[%emt 0:00:18]} 34. Qd3+ {[%emt 0:00:03]} Kg8 {[%emt 0:00:05]} 35. Qc4+ {[%emt 0:00:01]} Kh8 1-0

[Event "12th Arad Open 2019"]
[Site "Arad"]
[Date "2019.07.29"]
[Round "7.37"]
[White "Kersten, Julian"]
[Black "Kelly, Ladislau-Endre"]
[Result "0-1"]
[ECO "B07"]
[WhiteElo "1951"]
[BlackElo "2182"]
[Annotator "NA"]
[PlyCount "56"]
[EventDate "2019.07.24"]
[EventType "swiss"]
[EventCountry "ROU"]
[SourceTitle "playchess.com"]
[Source "ChessBase"]
[SourceQuality "1"]
[TimeControl "40/5400+30:900+30"]

1. d4 {[%emt 0:00:00]} d6 {[%emt 0:00:00]} 2. e4 {[%emt 0:00:38]} Nf6 {[%emt 0:01:41]} 3. Nc3 {[%emt 0:00:08]} e5 {[%emt 0:00:03]} 4. Nge2 {[%emt 0:00:23]} Be7 {[%emt 0:01:52]} 5. g3 {[%emt 0:00:10]} O-O {[%emt 0:07:05]} 6. Bg2 {[%emt 0:00:07]} exd4 {[%emt 0:00:14]} 7. Nxd4 {[%emt 0:00:22]} Re8 {[%emt 0:00:05]} 8. O-O {[%emt 0:00:34]} Nbd7 {[%emt 0:00:14]} 9. h3 {[%emt 0:00:56]} Bf8 {[%emt 0:00:53]} 10. Re1 {[%emt 0:08:48]} c6 {[%emt 0:03:06]} 11. a4 {[%emt 0:06:35]} a5 {[%emt 0:00:10]} 12. b3 {[%emt 0:04:42]} Nc5 {[%emt 0:06:22]} 13. Bb2 {[%emt 0:04:50]} g6 {[%emt 0:01:52]} 14. Qd2 {[%emt 0:01:10]} Bd7 {[%emt 0:02:48]} 15. Rad1 {[%emt 0:01:44]} Bg7 {[%emt 0:05:35]} 16. Ba1 {[%emt 0:06:36]} Qb6 {[%emt 0:02:18]} 17. Kh2 {[%emt 0:16:27]} Re7 {[%emt 0:07:34]} 18. Qf4 {[%emt 0:07:51]} Qc7 {[%emt 0:01:26]} 19. Nf3 {[%emt 0:03:20]} Rae8 {[%emt 0:06:38]} 20. Nd2 {[%emt 0:26:55]} Nh5 {[%emt 0:06:08]} 21. Qe3 {[%emt 0:01:50]} b6 {[%emt 0:06:36]} 22. Bf3 {[%emt 0:02:47]} d5 {[%emt 0:02:11]} 23. Ne2 {[%emt 0:02:33]} Bxa1 {[%emt 0:01:00]} 24. Rxa1 {[%emt 0:00:16]} Nf6 {[%emt 0:00:10]} 25. Qg5 {[%emt 0:01:34]} Nfxe4 {[%emt 0:00:34]} 26. Bxe4 {[%emt 0:00:15]} Nxe4 {[%emt 0:00:07]} 27. Nxe4 {[%emt 0:00:21]} Rxe4 {[%emt 0:00:05]} 28. Qd2 {[%emt 0:01:26]} Qe5 {[%emt 0:00:05]} 0-1